[Event "FIDE WYCC Girls U18 2023"]
[Site "Montesilvano"]
[Date "2023.11.13"]
[Round "1.9"]
[White "Tikvesli, Ceylin"]
[Black "Mihelic, Vesna"]
[Result "0-1"]
[ECO "C48"]
[WhiteElo "1736"]
[BlackElo "2102"]
[Annotator "ChessBase"]
[PlyCount "132"]
[EventDate "2023.11.13"]
[EventType "swiss"]
[EventCountry "ITA"]
[SourceTitle "playchess.com"]
[Source "ChessBase"]
[SourceQuality "1"]
[TimeControl "40/5400+30:1800+30"]

1. e4 {[%emt 0:00:04]} e5 {[%emt 0:00:06]} 2. Nf3 {[%emt 0:00:06]} Nc6 {[%emt 0:00:06]} 3. Nc3 {[%emt 0:00:21]} Nf6 {[%emt 0:00:07]} 4. Bb5 {[%emt 0:00:07]} Bd6 {[%emt 0:00:09]} 5. d3 {[%emt 0:00:11]} a6 {[%emt 0:00:12]} 6. Ba4 {[%emt 0:00:39]} h6 {[%emt 0:00:19]} 7. a3 {[%emt 0:00:06]} b5 {[%emt 0:00:32]} 8. Bb3 {[%emt 0:00:06]} Bb7 {[%emt 0:00:11]} 9. g4 {[%emt 0:02:16]} Nd4 {[%emt 0:22:31]} 10. Ba2 {[%emt 0:12:19]} Ne6 {[%emt 0:16:34]} 11. g5 {[%emt 0:11:26]} Ng8 {[%emt 0:05:30]} 12. Rg1 {[%emt 0:09:46]} hxg5 {[%emt 0:06:45]} 13. Bxg5 {[%emt 0:04:48]} f6 {[%emt 0:07:25]} 14. Be3 {[%emt 0:05:15]} Qe7 {[%emt 0:00:52]} 15. Nd5 {[%emt 0:17:29]} Bxd5 {[%emt 0:00:25]} 16. Bxd5 {[%emt 0:01:06]} c6 {[%emt 0:00:11]} 17. Bxe6 {[%emt 0:04:36]} dxe6 {[%emt 0:00:09]} 18. a4 {[%emt 0:04:43]} b4 {[%emt 0:02:34]} 19. c4 {[%emt 0:00:57]} c5 {[%emt 0:03:13]} 20. b3 {[%emt 0:01:00]} O-O-O {[%emt 0:00:25]} 21. h4 {[%emt 0:03:27]} Qf7 {[%emt 0:01:57]} 22. Qe2 {[%emt 0:01:26]} Ne7 {[%emt 0:01:20]} 23. O-O-O {[%emt 0:01:37]} Ng6 {[%emt 0:05:20]} 24. Rh1 {[%emt 0:00:24]} Rh7 {[%emt 0:04:26]} 25. Rh3 {[%emt 0:01:25]} Rdh8 {[%emt 0:00:45]} 26. Rdh1 {[%emt 0:00:39]} Rh5 {[%emt 0:05:34]} 27. Qf1 {[%emt 0:01:36]} Be7 {[%emt 0:03:12]} 28. Qg2 {[%emt 0:02:12]} R8h7 {[%emt 0:08:48]} 29. Rg1 {[%emt 0:02:20]} Nf8 {[%emt 0:01:22]} 30. Rg3 {[%emt 0:00:17]} g6 {[%emt 0:00:20]} 31. Kc2 {[%emt 0:01:48]} Qg7 {[%emt 0:01:50]} 32. Bd2 {[%emt 0:03:45]} Kc7 {[%emt 0:00:26]} 33. Be3 {[%emt 0:00:05]} f5 {[%emt 0:00:35]} 34. Bg5 {[%emt 0:01:53]} f4 {[%emt 0:01:01]} 35. Rg4 {[%emt 0:01:17]} Bd6 {[%emt 0:00:41]} 36. Qh3 {[%emt 0:02:00]} Qf7 {[%emt 0:01:03]} 37. Qg2 {[%emt 0:01:38]} Rg7 {[%emt 0:00:27]} 38. Qf1 {[%emt 0:00:35]} Nd7 {[%emt 0:00:18]} 39. Qg2 {[%emt 0:00:26]} Nb8 {[%emt 0:00:20]} 40. Rd1 {[%emt 0:00:00]} Nc6 41. Kb2 {[%emt 0:01:21]} Rg8 {[%emt 0:00:40]} 42. Ka2 {[%emt 0:08:07]} Kb7 {[%emt 0:00:38]} 43. Kb2 {[%emt 0:01:10]} Rf8 {[%emt 0:00:46]} 44. Ka2 {[%emt 0:00:48]} Bc7 {[%emt 0:00:12]} 45. Kb2 {[%emt 0:01:23]} Qd7 {[%emt 0:00:19]} 46. Qh3 {[%emt 0:00:59]} Nd4 {[%emt 0:00:27]} 47. Ne1 {[%emt 0:02:07]} Ne2 {[%emt 0:03:25]} 48. Nc2 {[%emt 0:01:08]} Nc3 {[%emt 0:01:54]} 49. Ra1 {[%emt 0:01:56]} Rf7 {[%emt 0:03:21]} 50. Qf3 {[%emt 0:02:30]} Qd6 {[%emt 0:01:25]} 51. Kc1 {[%emt 0:02:46]} Rhh7 {[%emt 0:04:45]} 52. Kd2 {[%emt 0:06:10]} Qf8 {[%emt 0:00:34]} 53. Ne1 {[%emt 0:02:00]} Rd7 {[%emt 0:01:04]} 54. Kc2 {[%emt 0:00:40]} Qd6 {[%emt 0:02:44]} 55. Bf6 {[%emt 0:04:25]} Qd4 {[%emt 0:01:19]} 56. Rc1 {[%emt 0:00:33]} Na2 {[%emt 0:03:19]} 57. Rb1 {[%emt 0:00:34]} Bd8 {[%emt 0:01:36]} 58. Rxf4 {[%emt 0:01:05]} Qd6 {[%emt 0:04:22]} 59. Rg4 {[%emt 0:00:42]} Bxf6 {[%emt 0:01:05]} 60. Rb2 {[%emt 0:00:57]} Nc3 {[%emt 0:05:02]} 61. Qxf6 {[%emt 0:00:12]} Rhf7 {[%emt 0:00:10]} 62. Qg5 {[%emt 0:00:45]} Rxf2+ {[%emt 0:00:08]} 63. Kc1 {[%emt 0:00:24]} Rf1 {[%emt 0:01:13]} 64. Kd2 {[%emt 0:01:15]} Rdf7 {[%emt 0:00:46]} 65. Qe3 {[%emt 0:02:18]} R7f2+ {[%emt 0:00:49]} 66. Kc1 {[%emt 0:00:06]} Rxb2 {[%emt 0:00:08]} 0-1

[Event "FIDE WYCC Girls U18 2023"]
[Site "Montesilvano"]
[Date "2023.11.13"]
[Round "1.10"]
[White "Cornileau, Juliette"]
[Black "Tsapaki, Asimenia"]
[Result "1/2-1/2"]
[ECO "E43"]
[WhiteElo "2089"]
[BlackElo "1702"]
[Annotator "ChessBase"]
[PlyCount "172"]
[EventDate "2023.11.13"]
[EventType "swiss"]
[EventCountry "ITA"]
[SourceTitle "playchess.com"]
[Source "ChessBase"]
[SourceQuality "1"]
[TimeControl "40/5400+30:1800+30"]

1. d4 {[%emt 0:00:07]} Nf6 {[%emt 0:00:08]} 2. c4 {[%emt 0:00:28]} e6 {[%emt 0:00:06]} 3. Nc3 {[%emt 0:00:04]} Bb4 {[%emt 0:00:09]} 4. e3 {[%emt 0:00:10]} b6 {[%emt 0:00:06]} 5. Bd3 {[%emt 0:06:09]} Bb7 {[%emt 0:00:09]} 6. Nf3 {[%emt 0:00:04]} Ne4 {[%emt 0:00:13]} 7. Bd2 {[%emt 0:16:01]} Nxd2 {[%emt 0:01:05]} 8. Qxd2 {[%emt 0:00:27]} O-O {[%emt 0:00:44]} 9. a3 {[%emt 0:02:26]} Be7 {[%emt 0:02:18]} 10. e4 {[%emt 0:04:20]} d6 {[%emt 0:01:50]} 11. O-O {[%emt 0:02:57]} Nd7 {[%emt 0:02:12]} 12. Rfe1 {[%emt 0:10:05]} e5 {[%emt 0:11:25]} 13. Nd5 {[%emt 0:06:45]} Bf6 {[%emt 0:03:11]} 14. Bc2 {[%emt 0:04:24]} Re8 {[%emt 0:09:44]} 15. Ba4 {[%emt 0:05:03]} c6 {[%emt 0:06:45]} 16. Nxf6+ {[%emt 0:04:02]} Qxf6 {[%emt 0:06:40]} 17. d5 {[%emt 0:02:47]} Rac8 {[%emt 0:14:02]} 18. Rad1 {[%emt 0:02:33]} Red8 {[%emt 0:01:27]} 19. dxc6 {[%emt 0:02:06]} Bxc6 {[%emt 0:00:54]} 20. Bxc6 {[%emt 0:02:38]} Rxc6 {[%emt 0:00:07]} 21. Qd5 {[%emt 0:01:05]} Rdc8 {[%emt 0:01:33]} 22. b3 {[%emt 0:05:38]} Nf8 {[%emt 0:04:48]} 23. Re3 {[%emt 0:04:23]} Ng6 {[%emt 0:04:56]} 24. g3 {[%emt 0:00:49]} h6 {[%emt 0:03:58]} 25. Kg2 {[%emt 0:01:05]} Kh7 {[%emt 0:07:26]} 26. Qd2 {[%emt 0:00:49]} Qe6 {[%emt 0:02:44]} 27. Rd3 {[%emt 0:03:33]} Qg4 {[%emt 0:04:05]} 28. h3 {[%emt 0:00:20]} Qxe4 {[%emt 0:00:50]} 29. Rxd6 {[%emt 0:00:53]} Rxd6 {[%emt 0:01:42]} 30. Qxd6 {[%emt 0:00:02]} Rc6 {[%emt 0:00:08]} 31. Qd5 {[%emt 0:02:18]} Qxd5 {[%emt 0:02:26]} 32. Rxd5 {[%emt 0:01:10]} f6 {[%emt 0:00:38]} 33. h4 {[%emt 0:04:11]} h5 {[%emt 0:01:41]} 34. Nd2 {[%emt 0:01:10]} Rc7 {[%emt 0:00:23]} 35. Rd8 {[%emt 0:05:33]} Ne7 {[%emt 0:00:34]} 36. Nf3 {[%emt 0:00:21]} Nc6 {[%emt 0:00:23]} 37. Rd5 {[%emt 0:00:33]} Kg6 {[%emt 0:01:42]} 38. Rd6 {[%emt 0:00:32]} Kf7 {[%emt 0:00:41]} 39. Rd2 {[%emt 0:01:14]} Na5 {[%emt 0:01:38]} 40. Rb2 {[%emt 0:00:00]} Rd7 {[%emt 0:00:00]} 41. Kf1 {[%emt 0:04:48]} Rd3 {[%emt 0:03:47]} 42. Nd2 {[%emt 0:00:46]} Rc3 {[%emt 0:00:12]} 43. Ke2 {[%emt 0:03:10]} Ke7 {[%emt 0:05:06]} 44. Rb1 {[%emt 0:02:08]} f5 {[%emt 0:06:28]} 45. Rb2 {[%emt 0:01:49]} e4 {[%emt 0:02:19]} 46. c5 {[%emt 0:09:13]} bxc5 {[%emt 0:01:11]} 47. b4 {[%emt 0:00:13]} Nb7 {[%emt 0:00:46]} 48. Nb1 {[%emt 0:02:27]} Rd3 {[%emt 0:02:34]} 49. Rc2 {[%emt 0:01:51]} cxb4 {[%emt 0:00:40]} 50. axb4 {[%emt 0:00:20]} Rd7 {[%emt 0:00:39]} 51. Ra2 {[%emt 0:04:26]} Nd6 {[%emt 0:00:46]} 52. Nc3 {[%emt 0:00:03]} Nc8 {[%emt 0:05:19]} 53. Ra5 {[%emt 0:00:41]} g6 {[%emt 0:00:50]} 54. Rc5 {[%emt 0:03:04]} Nb6 {[%emt 0:00:59]} 55. Rc6 {[%emt 0:00:30]} Kf7 {[%emt 0:01:08]} 56. Ke3 {[%emt 0:00:57]} Rb7 {[%emt 0:04:35]} 57. Kf4 {[%emt 0:01:08]} Nd7 {[%emt 0:00:54]} 58. b5 {[%emt 0:00:42]} Nf6 {[%emt 0:03:09]} 59. Kg5 {[%emt 0:01:06]} Nh7+ {[%emt 0:00:13]} 60. Kf4 {[%emt 0:00:47]} Nf8 {[%emt 0:00:44]} 61. Ke3 {[%emt 0:00:54]} Ne6 {[%emt 0:00:19]} 62. Ra6 {[%emt 0:00:39]} Nc7 {[%emt 0:01:43]} 63. Rc6 {[%emt 0:00:16]} Nxb5 {[%emt 0:00:55]} 64. Nxb5 {[%emt 0:00:05]} Rxb5 {[%emt 0:00:04]} 65. Rc7+ {[%emt 0:00:06]} Kf6 {[%emt 0:00:14]} 66. Rxa7 {[%emt 0:00:04]} Rb3+ {[%emt 0:00:10]} 67. Ke2 {[%emt 0:00:05]} Rb6 {[%emt 0:00:12]} 68. Rh7 {[%emt 0:01:27]} Re6 {[%emt 0:01:03]} 69. Ke3 {[%emt 0:00:37]} Re7 {[%emt 0:00:47]} 70. Rh8 {[%emt 0:00:13]} Rc7 {[%emt 0:00:38]} 71. Ra8 {[%emt 0:00:29]} Rc3+ {[%emt 0:00:21]} 72. Ke2 {[%emt 0:00:10]} Rc6 {[%emt 0:01:37]} 73. Rh8 {[%emt 0:01:25]} Rc7 {[%emt 0:00:21]} 74. Rf8+ {[%emt 0:00:29]} Kg7 {[%emt 0:00:21]} 75. Ra8 {[%emt 0:00:06]} Rb7 {[%emt 0:00:45]} 76. Ra6 {[%emt 0:00:31]} Rb3 {[%emt 0:00:21]} 77. Rc6 {[%emt 0:00:18]} f4 {[%emt 0:00:46]} 78. gxf4 {[%emt 0:01:10]} Rh3 {[%emt 0:00:05]} 79. Re6 {[%emt 0:00:53]} Rxh4 {[%emt 0:00:09]} 80. Rxe4 {[%emt 0:00:03]} Rh3 {[%emt 0:01:00]} 81. Kf1 {[%emt 0:00:55]} Ra3 {[%emt 0:00:16]} 82. Kg2 {[%emt 0:00:21]} Kf6 {[%emt 0:00:06]} 83. Rb4 {[%emt 0:00:43]} Rd3 {[%emt 0:00:52]} 84. Rb5 {[%emt 0:00:22]} Ke6 {[%emt 0:00:57]} 85. Rg5 {[%emt 0:00:17]} Kf6 {[%emt 0:00:06]} 86. Rb5 {[%emt 0:00:01]} Ke6 {[%emt 0:00:56]} 1/2-1/2

[Event "FIDE WYCC Girls U18 2023"]
[Site "Montesilvano"]
[Date "2023.11.13"]
[Round "1.11"]
[White "Nielsen-Refs, Ingrid Elmer"]
[Black "Naymanova, Patricie"]
[Result "0-1"]
[ECO "E39"]
[WhiteElo "1676"]
[BlackElo "2083"]
[Annotator "NA"]
[PlyCount "140"]
[EventDate "2023.11.13"]
[EventType "swiss"]
[EventCountry "ITA"]
[SourceTitle "playchess.com"]
[Source "ChessBase"]
[SourceQuality "1"]
[TimeControl "40/5400+30:1800+30"]

1. d4 {[%emt 0:00:06]} Nf6 {[%emt 0:00:19]} 2. c4 {[%emt 0:00:16]} e6 {[%emt 0:00:07]} 3. Nc3 {[%emt 0:00:25]} Bb4 {[%emt 0:00:07]} 4. Qc2 {[%emt 0:01:21]} c5 {[%emt 0:00:06]} 5. dxc5 {[%emt 0:00:17]} O-O {[%emt 0:00:11]} 6. Nf3 {[%emt 0:07:18]} Na6 {[%emt 0:00:46]} 7. a3 {[%emt 0:08:52]} Bxc3+ {[%emt 0:02:28]} 8. Qxc3 {[%emt 0:00:23]} Nxc5 {[%emt 0:00:19]} 9. Bf4 {[%emt 0:03:34]} b6 {[%emt 0:08:35]} 10. e3 {[%emt 0:01:28]} Bb7 {[%emt 0:00:43]} 11. Be2 {[%emt 0:02:29]} h6 {[%emt 0:07:17]} 12. O-O {[%emt 0:02:36]} d5 {[%emt 0:02:09]} 13. Rfd1 {[%emt 0:09:12]} Qe7 {[%emt 0:01:24]} 14. Rac1 {[%emt 0:05:38]} Rac8 {[%emt 0:11:17]} 15. b4 {[%emt 0:15:35]} Nfe4 {[%emt 0:04:28]} 16. Qb2 {[%emt 0:03:31]} Nd7 {[%emt 0:25:05]} 17. cxd5 {[%emt 0:05:24]} Bxd5 {[%emt 0:01:40]} 18. Nd2 {[%emt 0:05:09]} g5 {[%emt 0:05:40]} 19. Bg3 {[%emt 0:05:18]} Nxd2 {[%emt 0:04:02]} 20. Qxd2 {[%emt 0:03:04]} f5 {[%emt 0:01:17]} 21. h3 {[%emt 0:03:32]} Nf6 {[%emt 0:00:28]} 22. Bd3 {[%emt 0:03:13]} Qb7 {[%emt 0:01:47]} 23. f3 {[%emt 0:03:00]} Rfd8 {[%emt 0:13:42]} 24. Qe2 {[%emt 0:01:42]} Qf7 {[%emt 0:02:19]} 25. Be5 Bb3 {[%emt 0:01:21]} 26. Re1 {[%emt 0:03:46]} Nd7 {[%emt 0:00:42]} 27. Bb2 {[%emt 0:01:28]} Nf8 {[%emt 0:01:28]} 28. Rxc8 {[%emt 0:00:56]} Rxc8 {[%emt 0:00:02]} 29. Rc1 {[%emt 0:00:57]} Rd8 {[%emt 0:00:37]} 30. Bc4 {[%emt 0:01:19]} Bxc4 {[%emt 0:00:35]} 31. Qxc4 {[%emt 0:00:13]} Ng6 {[%emt 0:02:33]} 32. Qc3 {[%emt 0:00:56]} e5 {[%emt 0:00:35]} 33. Qc4 {[%emt 0:02:14]} Qxc4 {[%emt 0:01:24]} 34. Rxc4 {[%emt 0:00:02]} Rd1+ {[%emt 0:00:04]} 35. Kh2 {[%emt 0:00:13]} Rd7 {[%emt 0:00:04]} 36. Rc6 {[%emt 0:01:07]} Kf7 {[%emt 0:00:01]} 37. Rc2 {[%emt 0:00:53]} Re7 {[%emt 0:01:02]} 38. g3 {[%emt 0:01:02]} h5 {[%emt 0:00:59]} 39. Bc1 {[%emt 0:00:30]} Rd7 {[%emt 0:00:56]} 40. Rc3 {[%emt 0:00:00]} Ne7 {[%emt 0:00:00]} 41. Kg2 {[%emt 0:07:09]} Ke6 {[%emt 0:02:46]} 42. e4 {[%emt 0:02:53]} f4 {[%emt 0:00:26]} 43. gxf4 {[%emt 0:00:44]} gxf4 {[%emt 0:00:22]} 44. Kf1 {[%emt 0:04:43]} Rd1+ {[%emt 0:00:10]} 45. Kg2 {[%emt 0:00:44]} Kd7 {[%emt 0:00:14]} 46. Rc2 {[%emt 0:01:07]} Ke6 {[%emt 0:02:39]} 47. Rc7 {[%emt 0:01:54]} Ng6 {[%emt 0:00:18]} 48. Rc6+ {[%emt 0:03:04]} Kf7 {[%emt 0:00:03]} 49. Rc7+ {[%emt 0:00:25]} Ke8 {[%emt 0:00:04]} 50. Rc3 {[%emt 0:04:27]} Nh4+ {[%emt 0:00:27]} 51. Kf2 {[%emt 0:04:04]} Rh1 {[%emt 0:00:12]} 52. Bd2 Rxh3 {[%emt 0:00:33]} 53. Rd3 {[%emt 0:02:22]} Ke7 {[%emt 0:02:04]} 54. Bc3 {[%emt 0:00:53]} Rh2+ {[%emt 0:00:51]} 55. Kf1 {[%emt 0:01:04]} Ke6 {[%emt 0:00:59]} 56. Kg1 {[%emt 0:02:09]} Rg2+ {[%emt 0:00:30]} 57. Kf1 {[%emt 0:00:27]} Rc2 {[%emt 0:01:07]} 58. Be1 {[%emt 0:01:09]} Ng6 {[%emt 0:00:15]} 59. Rd8 {[%emt 0:00:46]} Ra2 {[%emt 0:00:22]} 60. Rd3 {[%emt 0:00:20]} h4 {[%emt 0:00:43]} 61. Bf2 {[%emt 0:00:43]} h3 {[%emt 0:00:49]} 62. Bg1 {[%emt 0:00:50]} h2 {[%emt 0:00:14]} 63. Bxh2 {[%emt 0:00:20]} Rxh2 {[%emt 0:00:05]} 64. Rc3 {[%emt 0:00:26]} Kd7 {[%emt 0:00:50]} 65. Rd3+ {[%emt 0:00:16]} Kc6 {[%emt 0:00:08]} 66. Rd5 {[%emt 0:00:37]} Rb2 {[%emt 0:00:28]} 67. Ke1 {[%emt 0:00:42]} Rb3 {[%emt 0:00:06]} 68. Ke2 {[%emt 0:00:42]} Rxa3 {[%emt 0:00:38]} 69. Rd1 {[%emt 0:00:08]} Re3+ {[%emt 0:00:13]} 70. Kf2 {[%emt 0:00:09]} Nh4 {[%emt 0:00:36]} 0-1

[Event "FIDE WYCC Girls U18 2023"]
[Site "Montesilvano"]
[Date "2023.11.13"]
[Round "1.12"]
[White "Hakobyan, Astghik"]
[Black "Swara Lakshmi S Nair"]
[Result "1/2-1/2"]
[ECO "B90"]
[WhiteElo "2073"]
[BlackElo "1659"]
[Annotator "NA"]
[PlyCount "63"]
[EventDate "2023.11.13"]
[EventType "swiss"]
[EventCountry "ITA"]
[SourceTitle "playchess.com"]
[Source "ChessBase"]
[SourceQuality "1"]
[TimeControl "40/5400+30:1800+30"]

1. e4 {[%emt 0:00:04]} c5 {[%emt 0:00:09]} 2. Nf3 {[%emt 0:00:05]} d6 {[%emt 0:00:10]} 3. d4 {[%emt 0:00:15]} cxd4 {[%emt 0:00:02]} 4. Nxd4 {[%emt 0:00:07]} Nf6 {[%emt 0:00:09]} 5. Nc3 {[%emt 0:00:10]} a6 {[%emt 0:00:05]} 6. Be3 {[%emt 0:00:08]} e5 {[%emt 0:00:22]} 7. Nb3 {[%emt 0:00:05]} Be6 {[%emt 0:00:20]} 8. h3 {[%emt 0:00:06]} Be7 {[%emt 0:07:33]} 9. Qf3 {[%emt 0:02:32]} Nc6 {[%emt 0:09:10]} 10. O-O-O {[%emt 0:04:35]} b5 {[%emt 0:02:32]} 11. g4 {[%emt 0:08:00]} Na5 {[%emt 0:20:54]} 12. Nxa5 {[%emt 0:17:19]} Qxa5 {[%emt 0:00:10]} 13. Kb1 {[%emt 0:00:03]} Rc8 {[%emt 0:13:07]} 14. Nd5 {[%emt 0:00:40]} Bxd5 {[%emt 0:14:14]} 15. exd5 {[%emt 0:00:07]} Qa4 {[%emt 0:00:04]} 16. Qf5 {[%emt 0:11:03]} O-O {[%emt 0:00:32]} 17. g5 {[%emt 0:01:49]} g6 {[%emt 0:12:57]} 18. Qd3 {[%emt 0:00:34]} Nh5 {[%emt 0:04:40]} 19. h4 {[%emt 0:04:54]} Nf4 {[%emt 0:03:04]} 20. Qd2 {[%emt 0:04:13]} Rc7 {[%emt 0:03:04]} 21. Bxf4 {[%emt 0:09:15]} Qxf4 {[%emt 0:00:29]} 22. Qxf4 {[%emt 0:00:12]} exf4 {[%emt 0:00:19]} 23. Rd4 {[%emt 0:01:13]} f6 {[%emt 0:01:51]} 24. gxf6 {[%emt 0:00:30]} Rxf6 {[%emt 0:00:44]} 25. a4 {[%emt 0:04:02]} Rb7 {[%emt 0:05:22]} 26. axb5 {[%emt 0:09:17]} axb5 {[%emt 0:00:09]} 27. Rb4 {[%emt 0:00:06]} Kf8 {[%emt 0:00:59]} 28. Bxb5 {[%emt 0:06:36]} Rf5 {[%emt 0:00:12]} 29. c3 {[%emt 0:02:26]} Bf6 {[%emt 0:00:49]} 30. Bc4 {[%emt 0:05:42]} Rxb4 {[%emt 0:00:09]} 31. cxb4 {[%emt 0:00:01]} Rh5 {[%emt 0:00:52]} 32. b5 {[%emt 0:04:20]} 1/2-1/2

[Event "FIDE WYCC Girls U18 2023"]
[Site "Montesilvano"]
[Date "2023.11.13"]
[Round "1.13"]
[White "Largo, Franchesca"]
[Black "Voriskova, Anna"]
[Result "1-0"]
[ECO "B40"]
[WhiteElo "1658"]
[BlackElo "2065"]
[Annotator "NA"]
[PlyCount "113"]
[EventDate "2023.11.13"]
[EventType "swiss"]
[EventCountry "ITA"]
[SourceTitle "playchess.com"]
[Source "ChessBase"]
[SourceQuality "1"]
[TimeControl "40/5400+30:1800+30"]

1. e4 {[%emt 0:00:44]} c5 {[%emt 0:00:06]} 2. Nf3 {[%emt 0:00:24]} e6 {[%emt 0:00:07]} 3. c3 {[%emt 0:00:23]} Nf6 {[%emt 0:00:17]} 4. e5 {[%emt 0:01:00]} Nd5 {[%emt 0:00:08]} 5. d4 {[%emt 0:01:29]} cxd4 {[%emt 0:00:11]} 6. cxd4 {[%emt 0:00:04]} b6 {[%emt 0:00:23]} 7. Bd3 {[%emt 0:02:05]} Be7 {[%emt 0:09:13]} 8. Nc3 {[%emt 0:08:16]} Nxc3 {[%emt 0:02:11]} 9. bxc3 {[%emt 0:02:53]} Ba6 {[%emt 0:07:46]} 10. O-O {[%emt 0:06:09]} O-O {[%emt 0:06:41]} 11. a4 {[%emt 0:09:26]} Bxd3 {[%emt 0:13:11]} 12. Qxd3 {[%emt 0:00:07]} d6 {[%emt 0:15:23]} 13. exd6 {[%emt 0:10:22]} Qxd6 {[%emt 0:04:34]} 14. Ba3 {[%emt 0:05:16]} Qc7 {[%emt 0:01:52]} 15. Bxe7 {[%emt 0:09:23]} Qxe7 {[%emt 0:00:02]} 16. a5 {[%emt 0:00:11]} Nd7 {[%emt 0:04:35]} 17. axb6 {[%emt 0:01:08]} Nxb6 {[%emt 0:00:56]} 18. c4 {[%emt 0:02:07]} Rfd8 {[%emt 0:03:13]} 19. Rfc1 {[%emt 0:06:11]} Rac8 {[%emt 0:05:19]} 20. c5 {[%emt 0:02:55]} Nd5 {[%emt 0:00:05]} 21. Qa6 {[%emt 0:00:30]} Rc7 {[%emt 0:02:14]} 22. Rab1 {[%emt 0:02:26]} Nf4 {[%emt 0:04:05]} 23. g3 {[%emt 0:04:30]} Nh3+ {[%emt 0:00:50]} 24. Kg2 {[%emt 0:00:07]} Ng5 {[%emt 0:01:40]} 25. Ne5 {[%emt 0:03:54]} Qf6 {[%emt 0:03:39]} 26. h4 {[%emt 0:06:42]} Ne4 {[%emt 0:02:52]} 27. Qe2 {[%emt 0:00:07]} Qf5 {[%emt 0:03:25]} 28. Rb3 {[%emt 0:07:49]} h5 {[%emt 0:01:43]} 29. Rf3 {[%emt 0:03:38]} Qh7 {[%emt 0:00:01]} 30. Qe3 {[%emt 0:00:48]} f6 {[%emt 0:02:30]} 31. Nc4 {[%emt 0:00:17]} Qg6 {[%emt 0:03:06]} 32. Rf4 {[%emt 0:01:08]} f5 {[%emt 0:00:36]} 33. Re1 {[%emt 0:01:01]} Rb7 {[%emt 0:01:13]} 34. Ne5 {[%emt 0:00:20]} Qe8 {[%emt 0:00:26]} 35. Re2 {[%emt 0:02:35]} Rb4 {[%emt 0:00:31]} 36. f3 {[%emt 0:00:48]} Nf6 {[%emt 0:00:27]} 37. Nd3 {[%emt 0:00:35]} Nd5 {[%emt 0:00:41]} 38. Qe5 {[%emt 0:00:46]} Nxf4+ {[%emt 0:00:17]} 39. Nxf4 {[%emt 0:00:05]} Rdxd4 {[%emt 0:02:46]} 40. Nxe6 {[%emt 0:00:00]} Rd7 {[%emt 0:00:00]} 41. Qc3 {[%emt 0:02:39]} Re4 {[%emt 0:11:09]} 42. fxe4 {[%emt 0:01:19]} Qxe6 {[%emt 0:00:06]} 43. e5 {[%emt 0:00:59]} f4 {[%emt 0:05:05]} 44. Qf3 {[%emt 0:06:10]} fxg3 {[%emt 0:01:31]} 45. Kxg3 {[%emt 0:05:31]} g6 {[%emt 0:07:21]} 46. Qe4 {[%emt 0:03:33]} Rd5 {[%emt 0:05:07]} 47. Qc4 {[%emt 0:03:17]} g5 {[%emt 0:03:47]} 48. hxg5 {[%emt 0:00:33]} Qg4+ {[%emt 0:00:34]} 49. Qxg4 {[%emt 0:00:23]} hxg4 {[%emt 0:00:01]} 50. e6 {[%emt 0:01:28]} Kf8 {[%emt 0:00:05]} 51. e7+ {[%emt 0:00:48]} Ke8 {[%emt 0:00:07]} 52. Kxg4 {[%emt 0:01:23]} Rxc5 {[%emt 0:00:03]} 53. g6 {[%emt 0:00:13]} Rc1 {[%emt 0:00:33]} 54. Kf5 {[%emt 0:00:38]} Rc5+ {[%emt 0:00:34]} 55. Kf6 {[%emt 0:00:47]} Rc1 {[%emt 0:00:39]} 56. Rg2 {[%emt 0:02:21]} Rf1+ {[%emt 0:01:12]} 57. Ke5 {[%emt 0:00:49]} 1-0

[Event "FIDE WYCC Girls U18 2023"]
[Site "Montesilvano"]
[Date "2023.11.13"]
[Round "1.14"]
[White "Liu, Kelsey"]
[Black "Sukyte, Kotryna"]
[Result "1/2-1/2"]
[ECO "B62"]
[WhiteElo "2051"]
[BlackElo "1651"]
[Annotator "NA"]
[PlyCount "47"]
[EventDate "2023.11.13"]
[EventType "swiss"]
[EventCountry "ITA"]
[SourceTitle "playchess.com"]
[Source "ChessBase"]
[SourceQuality "1"]
[TimeControl "40/5400+30:1800+30"]

1. e4 {[%emt 0:00:05]} c5 {[%emt 0:00:07]} 2. Nf3 {[%emt 0:00:12]} d6 {[%emt 0:00:31]} 3. Nc3 {[%emt 0:00:11]} Nc6 {[%emt 0:00:58]} 4. d4 {[%emt 0:00:13]} cxd4 {[%emt 0:00:44]} 5. Nxd4 {[%emt 0:00:06]} Nf6 {[%emt 0:01:51]} 6. Bg5 {[%emt 0:00:38]} e6 {[%emt 0:01:49]} 7. Qd3 {[%emt 0:02:30]} Be7 {[%emt 0:03:53]} 8. O-O-O {[%emt 0:03:33]} Ne5 {[%emt 0:04:42]} 9. Qh3 {[%emt 0:07:13]} a6 {[%emt 0:06:08]} 10. f4 {[%emt 0:02:08]} Ned7 {[%emt 0:03:00]} 11. Bc4 {[%emt 0:10:53]} Nb6 {[%emt 0:10:15]} 12. Bb3 {[%emt 0:03:07]} Qc7 {[%emt 0:10:25]} 13. Rhe1 {[%emt 0:02:35]} Bd7 {[%emt 0:15:44]} 14. e5 {[%emt 0:10:23]} dxe5 {[%emt 0:02:48]} 15. fxe5 {[%emt 0:00:25]} Nfd5 {[%emt 0:02:03]} 16. Bxe7 {[%emt 0:01:36]} Nxe7 {[%emt 0:00:59]} 17. Qg3 {[%emt 0:03:44]} Ng6 {[%emt 0:12:00]} 18. Ne4 {[%emt 0:07:41]} O-O {[%emt 0:03:57]} 19. Ng5 {[%emt 0:05:25]} Kh8 {[%emt 0:11:25]} 20. h4 {[%emt 0:03:33]} Ba4 {[%emt 0:05:19]} 21. h5 {[%emt 0:02:38]} Ne7 {[%emt 0:00:16]} 22. Qd3 {[%emt 0:03:42]} g6 {[%emt 0:00:52]} 23. hxg6 {[%emt 0:00:11]} Nxg6 {[%emt 0:01:15]} 24. Qh3 {[%emt 0:00:47]} 1/2-1/2